bitfinex-derivatives/quotes_ETHF0:USTF0_20250908
["timestamp","ask_amount","ask_price","bid_price","bid_amount"]
[1757347393558,0.55511473,4371.1,4369.7,0.22879999]
[1757347393851,0.55511473,4371.0,4369.7,0.22879999]
[1757347394056,0.55511473,4370.9,4369.7,0.22879999]
[1757347394252,0.55511473,4370.8,4369.7,0.22879999]
[1757347394451,0.55511473,4370.7,4369.7,0.22879999]
[1757347394653,0.22881,4371.2,4369.7,0.22879999]
[1757347394852,0.55497702,4371.1,4369.7,0.22879999]
[1757347395054,0.55497702,4371.0,4369.7,0.22879999]
[1757347395256,0.55497702,4370.9,4369.4,0.5789]
[1757347395456,0.55497702,4370.8,4369.4,0.8119]
[1757347395657,0.134,4371.4,4369.4,0.8119]
[1757347395658,0.55497702,4370.7,4369.4,0.8119]
[1757347395854,0.55497702,4370.6,4369.4,0.8119]
[1757347396054,0.55497702,4370.5,4369.4,0.8119]
[1757347396251,0.55497702,4370.4,4369.4,0.5789]
[1757347396458,0.55497702,4370.3,4369.4,0.5789]
[1757347396652,0.55497702,4370.2,4369.4,0.5789]
[1757347396859,1.22679718,4370.2,4369.4,0.5789]
[1757347397259,0.55497702,4370.1,4369.4,0.5789]
[1757347397454,0.55497702,4370.0,4369.4,0.5789]
[1757347397656,0.55497702,4369.9,4369.4,0.5789]
[1757347397967,0.55497702,4369.8,4369.4,0.5789]
[1757347398159,0.18089438,4370.3,4369.4,0.5789]
[1757347398160,0.55497702,4369.7,4369.4,0.5789]
[1757347398359,0.55497702,4369.6,4369.4,0.36120858]
[1757347398565,0.78797702,4369.5,4369.4,0.36120858]
[1757347398868,0.78797702,4369.5,4367.6,0.233]
[1757347399069,0.55497702,4369.4,4367.6,0.233]
[1757347399260,0.55497702,4369.3,4367.6,0.233]
[1757347399567,0.55497702,4369.2,4367.6,0.233]
[1757347399768,0.55497702,4369.1,4367.6,0.233]
[1757347399965,0.55497702,4369.0,4367.6,0.233]
[1757347400166,0.55497702,4368.9,4367.6,0.233]
[1757347400367,0.233,4369.5,4367.6,0.233]
[1757347400562,0.55323741,4369.4,4367.6,0.233]
[1757347400762,1.29279718,4370.6,4367.7,0.22888999]
[1757347400974,0.55341376,4370.5,4367.9,0.41206]
[1757347401167,0.55341376,4370.4,4367.9,0.41206]
[1757347401363,0.55341376,4370.3,4368.0,3.24251613]
[1757347401566,0.078,4370.8,4368.0,3.76251613]
[1757347401764,0.55344882,4370.7,4368.1,0.22886]
[1757347401960,0.55344882,4370.6,4368.1,0.22886]
[1757347402171,0.55344882,4370.5,4368.2,3.63641967]
[1757347402373,0.55344882,4370.4,4368.3,0.233]
[1757347402679,0.233,4370.8,4368.3,0.233]
[1757347402967,0.55353664,4370.7,4368.4,0.22886]
[1757347403268,0.84433664,4370.6,4368.6,0.3058]
[1757347403473,0.55353664,4370.5,4368.6,0.3058]
[1757347403673,0.2908,4370.4,4368.8,0.3058]
[1757347403969,0.2908,4370.2,4368.8,0.3058]
[1757347404168,0.2908,4370.0,4368.8,0.3058]
[1757347404669,0.55566305,4369.9,4368.8,0.3058]
[1757347404870,0.2908,4370.0,4368.8,0.3058]
[1757347405071,0.55566237,4369.9,4368.8,0.3058]
[1757347405270,0.2908,4370.0,4368.8,0.3058]
[1757347405469,0.55572928,4369.9,4369.5,0.1226]
[1757347405770,0.2908,4370.2,4369.6,0.3058]
[1757347405974,0.5557257,4370.1,4369.6,0.3058]
[1757347406274,0.5557257,4370.0,4369.6,0.3058]
[1757347406474,0.5557257,4369.9,4369.6,0.3058]
[1757347406664,0.5238,4370.3,4369.6,0.3058]
[1757347406870,0.55582874,4370.2,4369.5,0.1226]
[1757347407068,0.55582874,4370.1,4369.5,0.1226]
[1757347407371,1.22679718,4370.7,4369.5,0.1226]
[1757347407372,0.55582874,4370.0,4369.6,0.3058]
[1757347407675,0.233,4370.2,4369.6,0.3058]
[1757347407676,0.55582874,4369.9,4369.6,0.3058]
[1757347407872,0.55582874,4369.8,4369.6,0.3058]
[1757347408067,0.2908,4370.3,4369.6,0.3058]
[1757347408271,0.55592933,4370.2,4370.0,0.1226]
[1757347408474,0.55592933,4370.1,4370.0,0.4284]
[1757347408773,0.55592933,4370.4,4370.0,0.4284]
[1757347408981,0.55592933,4370.4,4370.0,0.1226]
[1757347409179,0.55592933,4370.4,4370.1,0.3058]
[1757347409377,0.55592933,4370.3,4370.1,0.3058]
[1757347409680,0.55592933,4370.2,4370.1,0.3058]
[1757347409973,0.5238,4370.6,4370.1,0.3058]
[1757347409974,0.55592933,4370.5,4370.1,0.3058]
[1757347410169,0.55592933,4370.5,4370.0,0.1226]
[1757347410470,0.2908,4370.4,4370.0,0.1226]
[1757347410677,0.84672933,4370.3,4370.1,0.3058]
[1757347410976,0.55592933,4370.2,4370.1,0.3058]
[1757347412177,32.964,4371.2,4370.1,0.3058]
[1757347412475,0.55651332,4371.1,4371.0,0.4284]
[1757347413873,0.84731332,4371.1,4371.0,0.4284]
[1757347414074,0.84731332,4371.1,4371.0,0.3058]
[1757347414274,0.55651332,4371.1,4371.0,0.4284]
[1757347415069,0.3832,4371.0,4370.1,0.3058]
[1757347415275,0.55651332,4370.9,4370.1,0.3058]
[1757347415475,0.84731332,4370.8,4370.1,0.3058]
[1757347415676,0.55651332,4370.7,4370.1,0.3058]
[1757347415871,0.2908,4370.5,4370.0,0.4284]
[1757347416077,0.55651332,4370.4,4370.1,0.3058]
[1757347416274,0.2908,4370.2,4369.6,0.3058]
[1757347417378,0.2908,4370.2,4369.7,0.5905]
[1757347417576,0.2908,4370.4,4369.7,0.8963]
[1757347417780,0.55657132,4370.3,4369.7,0.5905]
[1757347417974,0.2908,4370.1,4369.8,0.3058]
[1757347418176,0.2908,4370.4,4369.7,0.8963]
[1757347418376,0.5566308,4370.3,4369.7,0.8963]
[1757347418574,0.5566308,4370.2,4369.7,0.5905]
[1757347418881,0.5566308,4370.1,4370.0,0.4284]
[1757347422382,0.0925,4370.0,4369.7,0.5905]
[1757347422684,0.2908,4369.8,4369.7,0.5905]
[1757347422982,0.8474308,4369.8,4369.2,0.3058]
[1757347423183,0.5566308,4369.7,4369.5,0.1226]
[1757347423384,0.5566308,4369.7,4369.6,0.3058]
[1757347423778,0.2908,4369.7,4369.6,0.3058]
[1757347423983,0.8474308,4369.7,4369.6,0.3058]
[1757347425488,0.8474308,4369.7,4369.1,0.3058]
[1757347425687,0.5566308,4369.6,4369.0,0.1226]
[1757347425886,0.5566308,4369.5,4369.3,0.6118]
[1757347426082,0.2908,4369.4,4369.3,0.6118]
[1757347426282,0.2908,4369.9,4369.3,0.6118]
[1757347426483,0.55692324,4369.8,4369.3,0.6118]
[1757347426782,1.31929718,4370.5,4369.6,0.3058]
[1757347426783,0.55692324,4369.7,4369.6,0.3058]
[1757347426988,0.233,4370.3,4370.0,0.1226]
[1757347427289,0.55698476,4370.2,4370.1,0.3058]
[1757347429189,0.85468476,4370.2,4370.1,0.3058]
[1757347429991,0.85468476,4370.2,4369.6,0.3094]
[1757347430290,0.55698476,4370.1,4369.6,0.3094]
[1757347430588,0.2977,4369.9,4369.6,0.3094]
[1757347430784,0.55698476,4369.8,4369.6,0.3094]
[1757347430985,0.55698476,4369.7,4369.6,0.3094]
[1757347431284,0.55698476,4370.1,4369.6,0.3094]
[1757347431488,0.85468476,4370.0,4369.6,0.3094]
[1757347431696,0.55698476,4369.9,4369.6,0.3094]
[1757347431900,0.55698476,4369.9,4369.5,0.1226]
[1757347432201,0.55698476,4369.9,4369.6,0.3094]
[1757347432497,0.85468476,4369.9,4369.5,0.1226]
[1757347432700,0.55698476,4369.8,4369.6,0.3094]
[1757347432894,0.55698476,4369.8,4369.5,0.1226]
[1757347434098,0.55761045,4369.7,4369.6,0.3094]
[1757347439706,0.55761045,4369.7,4369.3,0.9212]
[1757347439906,0.55761045,4369.6,4369.3,0.9212]
[1757347440106,0.55761045,4369.5,4369.3,0.6118]
[1757347440302,0.85531045,4369.4,4369.3,0.6118]
[1757347440611,0.55761045,4369.4,4369.3,0.6118]
[1757347440904,0.55761045,4369.4,4369.1,0.3094]
[1757347441110,0.55761045,4369.3,4369.1,0.3094]
[1757347441310,0.55761045,4369.2,4369.1,0.3094]
[1757347443317,1.52449718,4370.2,4370.1,0.3094]
[1757347443615,0.85514768,4370.2,4370.1,0.3094]
[1757347446008,0.85514768,4370.2,4369.6,0.3094]
[1757347446209,0.2977,4370.0,4369.6,0.3094]
[1757347446411,0.55744768,4369.9,4369.6,0.3094]
[1757347447108,1.22679718,4370.7,4370.6,0.3094]
[1757347447303,0.55798852,4370.7,4370.6,0.3094]
[1757347448816,0.55798852,4370.7,4370.6,4.3094]
[1757347449115,0.233,4371.5,4370.6,4.0]
[1757347449315,0.5574385,4371.4,4370.6,0.3094]
[1757347449615,0.5574385,4371.3,4371.1,0.3094]
[1757347449808,0.5574385,4371.2,4371.1,0.3094]
[1757347450005,0.5574385,4371.2,4371.0,0.1166]
[1757347450204,0.2977,4371.7,4371.1,0.3094]
[1757347450416,0.2977,4371.5,4371.1,0.3094]
[1757347450608,0.2977,4371.3,4371.0,0.1166]
[1757347450815,0.55714221,4371.2,4371.1,0.3094]
[1757347452307,0.55714221,4371.2,4371.1,0.7133]
[1757347452512,0.5307,4372.0,4371.2,0.3094]
[1757347452715,0.95793357,4371.9,4371.8,0.2048]
[1757347452912,0.95793357,4371.9,4371.8,0.5142]
[1757347453112,1.25563357,4371.9,4371.8,0.5142]
[1757347455015,0.4012,4371.7,4371.6,0.5142]
[1757347455216,0.95793357,4371.7,4371.6,0.7133]
[1757347455912,0.55673357,4371.7,4371.6,0.7133]
[1757347456110,0.4921,4372.3,4372.2,0.2048]
[1757347456323,0.4012,4372.3,4372.2,0.7133]
[1757347456521,0.1944,4372.3,4372.2,0.7133]
[1757347456916,0.2977,4372.7,4372.2,0.7133]
[1757347457119,0.1944,4372.4,4372.3,0.7133]
[1757347457318,0.2977,4372.3,4371.6,0.3094]
[1757347457513,0.4012,4371.7,4371.6,0.5142]
[1757347457713,0.6989,4371.7,4371.6,0.5142]
[1757347458515,0.4012,4371.7,4371.6,0.7133]
[1757347458718,0.2959,4372.2,4371.6,0.4039]
[1757347458920,0.4144,4372.1,4372.0,0.3292]
[1757347459118,0.4144,4372.1,4372.0,0.6434]
[1757347459823,0.4144,4372.1,4372.0,0.842]
[1757347461823,0.7103,4372.1,4372.0,0.842]
[1757347462132,0.4144,4372.1,4372.0,0.842]
[1757347463423,0.5289,4372.9,4372.1,0.3142]
[1757347463733,1.26437573,4372.8,4372.7,0.5182]
[1757347465028,0.7103,4372.8,4372.7,0.5182]
[1757347465228,0.7103,4372.8,4372.1,0.3142]
[1757347466027,0.7103,4372.8,4372.7,0.7168]
[1757347466222,0.4144,4372.8,4372.7,0.7168]
[1757347466432,0.2959,4373.2,4372.8,0.3142]
[1757347466626,0.4144,4372.9,4372.8,0.7168]
[1757347466830,0.7103,4372.9,4372.8,0.7168]
[1757347467726,0.7103,4372.9,4372.1,0.3142]
[1757347468623,0.2959,4372.8,4372.2,0.3998]
[1757347468830,0.7103,4372.3,4372.2,0.3998]
[1757347470231,4.93902,4372.3,4372.2,0.3998]
[1757347470436,4.93902,4372.3,4372.2,0.0298]
[1757347470633,4.93902,4372.3,4371.7,0.3142]
[1757347470831,0.7103,4372.3,4371.7,0.3142]
[1757347473135,0.55423838,4372.2,4371.7,0.3142]
[1757347473341,0.55423838,4372.1,4371.6,0.3142]
[1757347473543,0.55423838,4372.0,4371.5,0.3292]
[1757347473739,0.22873001,4372.5,4371.6,0.3142]
[1757347473944,0.78287209,4372.4,4371.6,0.3142]
[1757347474147,0.55414208,4372.3,4371.6,0.3142]
[1757347474445,0.55414208,4372.2,4371.7,0.7687]
[1757347474749,0.233,4372.6,4371.8,0.3142]
[1757347474750,0.55414208,4372.1,4371.8,0.3142]
[1757347474940,0.22872,4372.5,4372.1,0.3142]
[1757347475245,0.55428615,4372.4,4372.1,0.3142]
[1757347475444,0.55428615,4372.3,4372.1,0.3142]
[1757347475638,0.78300615,4372.3,4372.1,0.3142]
[1757347475840,0.55428615,4372.2,4372.1,0.3142]
[1757347476041,0.78299616,4372.5,4372.1,0.3142]
[1757347476349,2.00979334,4372.5,4371.7,0.7687]
[1757347476540,0.78300615,4372.4,4371.7,0.7687]
[1757347476845,0.55428615,4372.3,4371.7,0.7687]
[1757347477037,0.55428615,4372.2,4371.8,0.3142]
[1757347477238,0.55428615,4372.1,4371.8,0.3142]
[1757347477440,0.55428615,4372.0,4371.8,0.3142]
[1757347477741,1.45551718,4372.5,4371.7,0.4545]
[1757347477742,0.55428615,4371.9,4371.7,0.7687]
[1757347477943,0.55428615,4371.8,4371.7,0.7687]
[1757347478143,0.55428615,4371.8,4371.7,0.3142]
[1757347478344,1.22679718,4372.3,4371.7,0.3142]
[1757347478545,0.55428615,4372.2,4371.7,0.3142]
[1757347478742,0.55428615,4372.1,4371.7,0.3142]
[1757347478942,0.55428615,4372.0,4371.7,0.3142]
[1757347479142,0.55428615,4371.9,4371.7,0.3142]
[1757347479343,0.55428615,4371.8,4371.7,0.3142]
[1757347479744,1.22679718,4372.3,4371.7,0.3142]
[1757347479952,0.55428615,4372.2,4371.7,0.3142]
[1757347480252,1.78108333,4372.2,4371.7,0.3142]
[1757347480447,0.55428615,4372.1,4371.7,0.3142]
[1757347480647,0.55428615,4372.0,4371.7,0.7651]
[1757347480944,0.78728615,4371.9,4371.7,0.7651]
[1757347481145,0.55428615,4371.8,4371.7,0.7651]
[1757347481547,0.55428615,4371.8,4371.7,0.9691]
[1757347482249,0.55428615,4371.8,4371.7,0.7651]
[1757347482645,4.55428615,4371.8,4370.0,0.1252]
[1757347482852,0.171,4370.6,4370.5,0.204]
[1757347483044,0.171,4370.6,4370.5,0.3292]
[1757347483245,0.72528615,4370.6,4370.5,0.3292]
[1757347483445,0.90388615,4370.6,4370.5,0.3292]
[1757347483949,0.72528615,4370.6,4370.5,0.3292]
[1757347484648,0.90388615,4370.6,4370.0,0.1252]
[1757347484853,0.593,4370.2,4370.1,0.3142]
[1757347485053,1.14728615,4370.2,4370.1,0.7845]
[1757347487654,0.2028,4369.7,4369.6,0.4026]
[1757347487853,0.4144,4369.7,4369.6,0.7168]
[1757347489054,0.2028,4369.7,4369.6,0.7168]
[1757347491054,0.414,4369.7,4369.6,0.7168]
[1757347492344,0.103,4369.8,4369.7,0.2911]
[1757347492545,0.103,4369.8,4369.7,0.7]
[1757347493754,0.1789,4370.4,4369.7,0.4089]
[1757347493960,1.04916891,4370.3,4370.2,0.5023]
[1757347495053,1.22806891,4370.3,4370.2,0.5023]
[1757347495855,1.04916891,4370.3,4370.2,0.7]
[1757347496353,1.22806891,4370.3,4370.2,0.7]
[1757347496554,1.37206891,4370.3,4370.2,0.5023]
[1757347497056,1.37206891,4370.3,4370.2,0.2911]
[1757347499853,1.37206891,4370.3,4370.2,0.5023]
[1757347500053,1.37206891,4370.3,4370.2,0.2911]
[1757347500255,0.55346891,4370.3,4370.2,0.7]
[1757347500454,0.78646891,4370.3,4370.2,0.7]
[1757347500756,1.19316891,4370.3,4370.2,0.7]
[1757347501557,1.37206891,4370.3,4370.0,0.4192]
[1757347501757,0.5856,4370.1,4370.0,0.4192]
[1757347502057,0.96016891,4370.1,4370.0,0.8281]
[1757347504258,1.19316891,4370.1,4370.0,0.8281]
[1757347505359,0.98196891,4370.1,4370.0,0.8281]
[1757347506854,0.55346891,4370.1,4370.0,0.8281]
[1757347507062,0.78646891,4370.1,4370.0,0.8281]
[1757347507763,0.55346891,4370.1,4370.0,0.8281]
[1757347509662,1.22679718,4370.9,4370.7,0.4089]
[1757347509863,0.9306,4370.9,4370.8,0.7]
[1757347510257,0.9306,4370.9,4370.8,0.2112]
[1757347511357,0.9306,4370.9,4370.4,0.2911]
[1757347511556,0.9306,4370.9,4370.1,0.2911]
[1757347511757,2.15739718,4370.9,4370.1,0.2911]
[1757347512162,0.6976,4370.2,4370.1,0.7]
[1757347513363,1.22679718,4370.8,4370.1,0.4089]
[1757347513561,0.2909,4370.7,4370.2,0.2911]
[1757347513866,1.92439718,4370.7,4370.6,0.2112]
[1757347514762,0.6976,4370.2,4370.1,0.2112]
[1757347516367,0.9306,4370.2,4369.8,0.2911]
[1757347516560,0.4067,4369.8,4369.7,0.4146]
[1757347516761,0.6976,4369.8,4369.7,0.4146]
[1757347517763,6.33332958,4369.8,4368.7,0.2911]
[1757347518067,0.6976,4368.8,4368.7,0.7]
[1757347519771,0.6976,4368.8,4368.7,0.4089]
[1757347519968,0.6976,4368.8,4368.7,0.2112]
[1757347521566,1.24996856,4368.8,4368.7,0.7126]
[1757347521768,0.55236856,4368.8,4368.7,0.7126]
[1757347522166,1.27656856,4368.8,4368.7,0.7126]
[1757347523567,1.27656856,4368.8,4368.3,0.7205]
[1757347523768,0.5106,4368.4,4368.3,1.1328]
[1757347523961,0.5106,4368.4,4368.3,0.7133]
[1757347523962,1.06296856,4368.4,4368.3,0.7133]
[1757347524368,0.5106,4368.4,4368.3,0.7133]
[1757347524675,0.2012,4368.4,4368.3,0.7133]
[1757347524975,0.86125084,4368.7,4368.3,0.7133]
[1757347525182,0.55185084,4368.6,4368.5,0.8352]
[1757347525373,0.5106,4369.5,4369.4,0.7133]
[1757347525575,1.63085259,4369.5,4369.4,0.7133]
[1757347525872,1.63085259,4369.5,4369.0,0.301]
[1757347526068,0.7242,4369.3,4369.2,0.2119]
[1757347526267,1.27655259,4369.3,4369.2,0.2119]
[1757347526463,1.27655259,4369.3,4369.2,0.7133]
[1757347526977,1.50955259,4369.3,4369.2,0.7133]
[1757347528776,0.8455,4369.0,4368.9,0.4137]
[1757347528972,1.39785259,4369.0,4368.9,0.4137]
[1757347529480,1.39785259,4369.0,4368.2,0.301]
[1757347529678,0.7242,4368.3,4368.2,0.5129]
[1757347529880,0.7242,4368.3,4368.2,0.7133]
[1757347535187,0.8455,4368.0,4367.9,0.466]
[1757347535376,1.39703074,4368.0,4367.9,0.466]
[1757347535577,1.39703074,4368.0,4367.1,0.301]
[1757347535785,0.3094,4367.8,4367.1,0.301]
[1757347536483,0.7242,4367.8,4367.7,0.2119]
[1757347536786,0.7242,4367.8,4367.7,0.5129]
[1757347537379,0.7242,4367.8,4367.7,0.2119]
[1757347537688,0.7242,4367.8,4367.4,0.7375]
[1757347537984,0.8455,4367.5,4367.4,0.9494]
[1757347538181,0.8455,4367.5,4367.4,1.1498]
[1757347538572,0.8455,4367.5,4367.4,0.8488]
[1757347539083,0.8455,4367.5,4367.4,0.4123]
[1757347539283,0.2012,4367.5,4367.4,0.7133]
[1757347539585,0.233,4367.7,4367.6,0.7133]
[1757347539885,0.7436,4367.7,4367.6,0.7133]
[1757347540382,0.9572,4367.7,4367.0,0.1219]
[1757347540584,0.9572,4367.7,4367.1,0.301]
[1757347540781,0.9572,4367.7,4367.6,0.2119]
[1757347541479,0.7242,4367.7,4367.6,0.2119]
[1757347542380,1.2758284,4367.7,4367.6,0.2119]
[1757347543081,1.2758284,4367.7,4367.6,0.7133]
[1757347543279,0.9664284,4367.7,4367.2,0.5146]
[1757347543483,0.7242,4367.3,4367.2,0.7265]
[1757347543683,0.7242,4367.3,4367.2,0.5129]
[1757347543985,0.7242,4367.3,4367.2,0.7133]
[1757347544385,0.7242,4367.3,4366.9,0.301]
[1757347544589,0.1213,4367.5,4366.9,0.301]
[1757347544590,0.8455,4367.0,4366.9,0.5129]
[1757347544789,0.8455,4367.0,4366.9,0.2119]
[1757347544983,1.3975728,4367.0,4366.1,0.301]
[1757347545179,0.7242,4366.2,4366.1,0.7133]
[1757347546887,0.3094,4366.9,4366.2,0.301]
[1757347547087,1.06262432,4366.8,4366.7,0.7133]
[1757347547289,0.55202432,4366.8,4366.7,0.7133]
[1757347547487,0.2012,4366.8,4366.7,0.7133]
[1757347547687,0.5106,4366.8,4366.7,0.7133]
[1757347548092,0.7242,4366.8,4366.7,0.7133]
[1757347549587,0.7242,4366.8,4366.7,0.2119]
[1757347549988,0.7242,4366.8,4366.7,0.1984]
[1757347550490,0.7242,4366.8,4366.7,0.7115]
[1757347550892,0.7242,4366.8,4366.7,0.4089]
[1757347551192,0.7242,4366.8,4366.7,0.1984]
[1757347551492,0.5503,4366.5,4366.1,0.3026]
[1757347551693,0.5503,4366.5,4366.4,0.1984]
[1757347552092,0.5503,4366.5,4366.4,0.7115]
[1757347552093,0.8572,4366.5,4366.4,0.7115]
[1757347552690,0.7283,4366.5,4366.4,0.7115]
[1757347552895,0.8572,4366.5,4366.4,0.7115]
[1757347553691,0.7283,4365.9,4365.8,0.4247]
[1757347553889,0.8993,4365.9,4365.8,0.4247]
[1757347554095,1.51396287,4365.9,4365.8,0.4247]
[1757347554291,1.27996287,4365.9,4365.8,1.1362]
[1757347554490,0.97306287,4365.9,4365.8,1.1362]
[1757347554688,32.992,4366.5,4366.0,0.1187]
[1757347554997,0.7495,4366.7,4366.6,0.4089]
[1757347555195,1.51510104,4366.7,4366.6,0.7115]
[1757347556192,1.28110104,4366.7,4366.6,0.7115]
[1757347556795,0.55280104,4366.7,4365.8,0.4247]
[1757347556995,0.55280104,4366.6,4365.8,0.4247]
[1757347557196,0.234,4367.0,4365.8,0.4247]
[1757347557397,0.55282776,4366.9,4365.8,0.4247]
[1757347557598,0.55282776,4366.8,4365.8,0.4247]
[1757347557799,0.55282776,4366.7,4365.8,0.4247]
[1757347558000,0.55282776,4366.6,4365.8,0.4247]
[1757347558199,0.55282776,4366.5,4365.8,0.4247]
[1757347558402,0.55282776,4366.4,4365.8,0.4247]
[1757347558599,0.55282776,4366.3,4365.8,0.4247]
[1757347558801,0.55282776,4366.2,4365.8,0.4247]
[1757347558995,0.55302219,4366.1,4365.8,0.4247]
[1757347559203,0.118,4366.4,4365.8,0.4247]
[1757347559397,0.55301323,4366.3,4365.8,0.4247]
[1757347559611,0.55301323,4366.2,4365.8,0.4247]
[1757347559811,0.55301323,4366.1,4365.8,0.4247]
[1757347560112,0.55303537,4366.0,4365.8,0.4247]
[1757347560302,1.22925761,4367.0,4365.8,0.4247]
[1757347560504,0.78711561,4366.9,4365.8,0.4247]
[1757347560704,0.55311561,4366.8,4365.8,0.4247]
[1757347560911,0.55311561,4366.8,4365.8,0.65372]
[1757347561512,0.55311561,4366.7,4365.8,0.65372]
[1757347561711,0.55311561,4366.6,4365.8,0.4247]
[1757347562008,0.55311561,4366.5,4365.8,0.4247]
[1757347562316,0.234,4367.0,4365.8,0.4247]
[1757347562317,0.55311561,4366.4,4365.8,0.65372]
[1757347562516,0.55311561,4366.3,4365.8,0.65372]
[1757347562709,0.234,4367.0,4365.8,0.65372]
[1757347562909,0.55325373,4366.9,4365.8,0.65372]
[1757347563114,0.55325373,4366.8,4365.8,0.65372]
[1757347563315,0.55325373,4366.9,4365.8,0.65372]
[1757347563608,0.234,4367.0,4365.8,0.65372]
[1757347564010,0.234,4367.0,4365.8,0.4247]
[1757347564315,0.78270817,4366.9,4365.8,0.4247]
[1757347564614,2.0086916,4366.8,4365.8,0.4247]
[1757347564815,0.55368817,4366.7,4365.8,0.4247]
[1757347565016,0.55368817,4366.6,4365.9,0.31526197]
[1757347565313,0.55368817,4366.5,4366.0,0.31526197]
[1757347565508,0.55368817,4366.4,4366.1,0.31526197]
[1757347565709,0.55368817,4366.3,4366.2,0.31526197]
[1757347565910,0.234,4366.3,4366.2,0.31526197]
[1757347566114,0.55368817,4366.3,4366.2,0.31526197]
[1757347569108,0.55368817,4366.3,4365.8,0.4247]
[1757347571219,0.55368817,4366.2,4365.8,0.4247]
[1757347571420,0.55368817,4366.1,4365.8,0.4247]
[1757347571720,0.55368817,4366.0,4365.8,0.4247]
[1757347571915,0.55368817,4365.9,4365.8,0.4247]
[1757347572814,0.55368817,4365.9,4364.1,0.044]
[1757347573015,0.55368817,4365.8,4364.2,0.2291]
[1757347573214,0.55368817,4365.7,4364.2,0.2291]
[1757347573418,0.55368817,4365.6,4364.3,0.22908]
[1757347573618,0.55368817,4365.5,4364.2,0.22909]
[1757347573818,0.55368817,4365.4,4364.2,0.22909]
[1757347574019,0.55368817,4365.3,4364.3,0.22908]
[1757347574221,0.55368817,4365.2,4364.2,0.22909]
[1757347574421,1.22598343,4366.1,4364.2,0.22909]
[1757347574623,1.22598343,4366.1,4364.3,0.22908]
[1757347574822,1.22598343,4366.1,4364.2,0.22909]
[1757347575315,1.22598343,4366.2,4364.3,0.65779]
[1757347575522,1.22598343,4366.2,4364.4,0.22908]
[1757347575824,0.65482152,4366.1,4364.4,0.22908]
[1757347576025,0.55382152,4366.0,4364.5,0.22908]
[1757347576225,0.55382152,4365.9,4364.4,0.22908]
[1757347576528,0.55382152,4365.8,4364.4,0.22908]
[1757347576723,0.55382152,4365.7,4364.5,0.22908]
[1757347576927,0.129,4366.2,4364.4,0.22908]
[1757347577121,0.55363674,4366.1,4364.4,0.22908]
[1757347577327,0.55363674,4366.0,4364.5,0.22908]
[1757347577528,0.55363674,4365.9,4364.4,0.22908]
[1757347577728,0.55363674,4365.8,4364.4,0.22908]
[1757347578029,0.55363674,4365.7,4364.5,0.22908]
[1757347578231,0.55363674,4365.6,4364.4,0.22908]
[1757347578422,0.55363674,4365.5,4364.4,0.22908]
[1757347578618,0.55363674,4365.4,4364.5,0.22908]
[1757347578828,0.129,4366.2,4364.4,0.22908]
[1757347579029,0.55362731,4366.1,4364.4,0.22908]
[1757347579224,0.55362731,4366.0,4364.5,0.22908]
[1757347579422,0.129,4366.2,4364.3,0.4287]
[1757347579423,0.55362731,4365.9,4364.4,0.22908]
[1757347579725,0.55362731,4365.8,4364.4,0.22908]
[1757347579929,0.55362731,4365.7,4364.5,0.22905999]
[1757347580123,0.55362731,4365.6,4364.4,0.22904]
[1757347580319,0.11,4366.3,4364.4,0.22904]
[1757347580520,0.55375878,4366.2,4364.5,0.22908]
[1757347580724,0.55375878,4366.1,4364.4,0.22908]
[1757347580923,0.55375878,4366.0,4364.4,0.22908]
[1757347581123,0.55375878,4365.9,4364.5,0.22908]
[1757347581329,0.55375878,4365.8,4364.4,0.22908]
[1757347581529,0.55375878,4365.7,4364.4,0.22908]
[1757347581829,0.55375878,4365.6,4364.5,0.22908]
[1757347582128,1.22598343,4366.6,4364.4,0.22908]
[1757347582326,1.9536836,4366.5,4364.4,0.22908]
[1757347582625,0.55370017,4366.4,4364.3,0.4287]
[1757347582932,0.55370017,4366.4,4364.4,0.22907]
[1757347583428,0.55370017,4366.3,4364.5,0.22907]
[1757347583625,0.55370017,4366.2,4364.4,0.22908]
[1757347583825,0.55370017,4366.1,4364.4,0.22908]
[1757347584029,0.55370017,4366.0,4364.5,0.22907]
[1757347584231,0.55370017,4365.9,4364.4,0.22908]
[1757347584434,0.55370017,4365.8,4364.4,0.22908]
[1757347584729,0.55370017,4365.7,4364.5,0.22907]
[1757347584928,0.55370017,4365.6,4364.5,0.41238]
[1757347585129,1.22598343,4366.8,4364.6,1.87587361]
[1757347585328,1.22598343,4366.8,4364.6,1.64680361]
[1757347585527,1.77745446,4366.8,4364.7,0.22905999]
[1757347585733,0.55147103,4366.7,4364.7,0.22905999]
[1757347585933,0.55147103,4366.6,4364.8,0.22905999]
[1757347586126,0.55147103,4366.5,4364.9,0.234]
[1757347586432,0.55147103,4366.4,4364.9,0.234]
[1757347586639,0.55147103,4366.3,4365.0,0.22905]
[1757347586832,0.55147103,4366.2,4365.0,0.22905]
[1757347587021,0.55147103,4366.1,4365.0,0.22905]
[1757347587230,0.55147103,4366.0,4364.6,1.64680361]
[1757347587533,0.55147103,4365.9,4364.5,1.64680361]
[1757347587734,0.55147103,4365.8,4364.4,0.234]
[1757347587929,0.55147103,4365.7,4364.4,0.46305999]
[1757347588129,0.55147103,4365.6,4364.4,0.234]
[1757347588429,0.55147103,4365.5,4364.4,0.234]
[1757347588636,1.22598343,4366.4,4364.4,0.234]
[1757347588935,0.22907001,4366.3,4364.4,0.234]
[1757347589230,0.3048,4366.1,4364.5,0.4176]
[1757347589432,0.66893666,4366.0,4364.5,0.4176]
[1757347589736,0.55163666,4365.9,4364.5,0.4176]
[1757347589934,0.3048,4365.8,4364.6,0.3002]
[1757347590228,0.1173,4365.5,4364.6,0.3002]
[1757347590532,0.3048,4365.3,4364.6,0.3002]
[1757347591836,0.3048,4365.3,4364.7,0.2291]
[1757347592036,0.1173,4365.5,4364.7,0.2291]
[1757347592338,0.55168078,4365.4,4364.9,0.3002]